fUSD/lending_fUSD_20240831
["ID","MTS","AMOUNT","RATE_DAILY","PERIOD"]
[336725733,1725085100404,-500.0,0.00038356,120]
[336725734,1725085100429,-500.0,0.00038356,120]
[336725735,1725085100455,-891.88,0.00038356,120]
[336725736,1725085100478,-500.0,0.00038356,120]
[336725737,1725085100501,-500.0,0.00038356,120]
[336725738,1725085100525,-500.0,0.00038356,120]
[336725739,1725085100551,-593.43228431,0.00038356,120]
[336725740,1725085100577,-500.0,0.00038356,120]
[336725741,1725085100604,-524.66,0.00038356,120]
[336725742,1725085100629,-500.0,0.00038356,120]
[336725743,1725085100662,-879.12,0.00038356,120]
[336725744,1725085100685,-500.0,0.00038356,120]
[336725745,1725085100711,-1215.98,0.00038356,120]
[336725746,1725085100735,-505.82900694,0.00038356,120]
[336725747,1725085100760,-500.0,0.00038356,120]
[336725748,1725085100789,-202.94930232,0.00038356,120]
[336725749,1725085100813,-1629.63,0.00038356,120]
[336725750,1725085100838,-500.0,0.00038356,120]
[336725751,1725085100862,-835.48,0.00038356,120]
[336725752,1725085100888,-776.49,0.00038356,120]
[336725753,1725085100915,-518.23,0.00038356,120]
[336725754,1725085100939,-500.0,0.00038356,120]
[336725755,1725085100963,-505.8402789,0.00038356,120]
[336725756,1725085100988,-155.22376666,0.00038356,120]
[336725757,1725085101012,-500.0,0.00038356,120]
[336725758,1725085101035,-500.0,0.00038356,120]
[336725759,1725085101059,-1325.36,0.00038356,120]
[336725760,1725085101083,-500.0,0.00038356,120]
[336725761,1725085101107,-500.0,0.00038356,120]
[336725762,1725085101131,-1225.8,0.00038356,120]
[336725763,1725085101157,-1225.8,0.00038356,120]
[336725764,1725085101181,-1225.8,0.00038356,120]
[336725765,1725085101206,-1225.8,0.00038356,120]
[336725766,1725085101230,-1225.8,0.00038356,120]
[336725767,1725085101255,-1225.8,0.00038356,120]
[336725768,1725085101280,-1225.8,0.00038356,120]
[336725769,1725085101304,-1225.8,0.00038356,120]
[336725770,1725085101329,-1225.8,0.00038356,120]
[336725771,1725085101353,-1225.8,0.00038356,120]
[336725772,1725085101378,-1225.8,0.00038356,120]
[336725773,1725085101404,-500.0,0.00038356,120]
[336725774,1725085101427,-1225.8,0.00038356,120]
[336725775,1725085101450,-765.75,0.00038356,120]
[336725776,1725085101474,-1225.8,0.00038356,120]
[336725777,1725085101499,-1225.8,0.00038356,120]
[336725778,1725085101523,-1225.8,0.00038356,120]
[336725779,1725085101548,-1225.8,0.00038356,120]
[336725780,1725085101572,-1225.8,0.00038356,120]
[336725781,1725085101596,-1225.8,0.00038356,120]
[336725782,1725085101620,-1225.8,0.00038356,120]
[336725783,1725085101644,-500.0,0.00038356,120]
[336725784,1725085101667,-500.0,0.00038356,120]
[336725785,1725085101690,-1225.8,0.00038356,120]
[336725786,1725085101714,-1225.8,0.00038356,120]
[336725787,1725085101738,-500.0,0.00038356,120]
[336725788,1725085101765,-1225.8,0.00038356,120]
[336725789,1725085101790,-1225.8,0.00038356,120]
[336725790,1725085101813,-1225.9224796,0.00038356,120]
[336725791,1725085101836,-500.0,0.00038356,120]
[336725792,1725085101860,-500.0,0.00038356,120]
[336725793,1725085101883,-500.0,0.00038356,120]
[336725794,1725085101907,-575.93,0.00038356,120]
[336725795,1725085101930,-500.0,0.00038356,120]
[336725796,1725085101954,-502.78618574,0.00038356,120]
[336725797,1725085101977,-500.0,0.00038356,120]
[336725798,1725085102001,-639.04517207,0.00038356,120]
[336725799,1725085102025,-609.15,0.00038356,120]
[336725800,1725085102049,-500.0,0.00038356,120]
[336725801,1725085102072,-500.0,0.00038356,120]
[336725802,1725085102096,-747.99,0.00038356,120]
[336725803,1725085102120,-27678.245217,0.00038356,120]
[336725804,1725085102145,-700.41,0.00038356,120]
[336725805,1725085102170,-500.0,0.00038356,120]
[336725806,1725085102195,-1498.46,0.00038356,120]
[336725807,1725085102218,-500.0,0.00038356,120]
[336725808,1725085102242,-500.0,0.00038356,120]
[336725809,1725085102266,-809.33,0.00038356,120]
[336725810,1725085102290,-1339.26,0.00038356,120]
[336725811,1725085102314,-769.1,0.00038356,120]
[336725812,1725085102338,-500.0,0.00038356,120]
[336725813,1725085102362,-500.0,0.00038356,120]
[336725814,1725085102387,-500.0,0.00038356,120]
[336725815,1725085102411,-500.0,0.00038356,120]
[336725816,1725085102436,-1446.69,0.00038356,120]
[336725817,1725085102460,-500.0,0.00038356,120]
[336725818,1725085102484,-500.0,0.00038356,120]
[336725819,1725085102508,-628.45,0.00038356,120]
[336725820,1725085102532,-500.0,0.00038356,120]
[336725821,1725085102557,-1130.55,0.00038356,120]
[336725822,1725085102582,-500.0,0.00038356,120]
[336725823,1725085102609,-500.0,0.00038356,120]
[336725824,1725085102635,-500.0,0.00038356,120]
[336725825,1725085102875,-1495.9,0.00038356,120]
[336725826,1725085102899,-500.0,0.00038356,120]
[336725827,1725085102923,-500.0,0.00038356,120]
[336725828,1725085102946,-500.0,0.00038356,120]
[336725829,1725085102970,-500.0,0.00038356,120]
[336725830,1725085102993,-502.49698864,0.00038356,120]
[336725831,1725085103017,-753.66,0.00038356,120]
[336725832,1725085103041,-982.67,0.00038356,120]
[336725833,1725085103065,-500.0,0.00038356,120]
[336725834,1725085103088,-507.41435257,0.00038356,120]
[336725835,1725085103112,-500.0,0.00038356,120]
[336725836,1725085103136,-1405.14,0.00038356,120]
[336725837,1725085103160,-500.0,0.00038356,120]
[336725838,1725085103184,-500.0,0.00038356,120]
[336725839,1725085103208,-500.0,0.00038356,120]
[336725840,1725085103233,-1842.35,0.00038356,120]
[336725841,1725085103259,-500.0,0.00038356,120]
[336725842,1725085103284,-1418.4,0.00038356,120]
[336725843,1725085103309,-1938.68,0.00038356,120]
[336725844,1725085103333,-1335.5,0.00038356,120]
[336725845,1725085103359,-500.0,0.00038356,120]
[336725846,1725085103384,-500.0,0.00038356,120]
[336725847,1725085103409,-500.0,0.00038356,120]
[336725848,1725085103434,-1753.74,0.00038356,120]
[336725849,1725085103459,-1761.1,0.00038356,120]
[336725850,1725085103483,-1409.66,0.00038356,120]
[336725851,1725085103507,-1768.43,0.00038356,120]
[336725852,1725085103532,-1240.37,0.00038356,120]
[336725853,1725085103556,-500.0,0.00038356,120]
[336725854,1725085103581,-513.13839068,0.00038356,120]
[336725855,1725085103607,-509.24907211,0.00038356,120]
[336725856,1725085103632,-509.22008736,0.00038356,120]
[336725857,1725085103656,-1945.17,0.00038356,120]
[336725858,1725085103681,-505.41464143,0.00038356,120]
[336725859,1725085103706,-500.0,0.00038356,120]
[336725860,1725085103731,-1722.76,0.00038356,120]
[336725861,1725085103756,-500.0,0.00038356,120]
[336725862,1725085103784,-500.0,0.00038356,120]
[336725863,1725085103808,-500.0,0.00038356,120]
[336725864,1725085103832,-184.91449954,0.00038356,120]
[336725865,1725085103857,-500.0,0.00038356,120]
[336725866,1725085103881,-500.0,0.00038356,120]
[336725867,1725085103910,-500.0,0.00038356,120]
[336725868,1725085103934,-509.82844687,0.00038356,120]
[336725869,1725085103960,-500.0,0.00038356,120]
[336725870,1725085103984,-500.0,0.00038356,120]
[336725871,1725085104008,-600.0,0.00038356,120]
[336725872,1725085104033,-1401.27,0.00038356,120]
[336725873,1725085104058,-500.0,0.00038356,120]
[336725874,1725085104083,-500.0,0.00038356,120]
[336725875,1725085104107,-970.41,0.00038356,120]
[336725876,1725085104132,-500.0,0.00038356,120]
[336725877,1725085104158,-723.51,0.00038356,120]
[336725878,1725085104183,-500.0,0.00038356,120]
[336725879,1725085104207,-1854.24,0.00038356,120]
[336725880,1725085104232,-500.0,0.00038356,120]
[336725881,1725085104258,-500.0,0.00038356,120]
[336725882,1725085104283,-500.0,0.00038356,120]
[336725883,1725085104308,-500.0,0.00038356,120]
[336725884,1725085104333,-500.0,0.00038356,120]
[336725885,1725085104359,-1254.2,0.00038356,120]
[336725886,1725085104384,-500.0,0.00038356,120]
[336725887,1725085104409,-620.01,0.00038356,120]
[336725888,1725085104434,-500.0,0.00038356,120]
[336725889,1725085104459,-500.0,0.00038356,120]
[336725890,1725085104483,-801.96,0.00038356,120]
[336725891,1725085104507,-500.0,0.00038356,120]
[336725892,1725085104530,-500.0,0.00038356,120]
[336725893,1725085104553,-1627.22,0.00038356,120]
[336725894,1725085104577,-305.49820295,0.00038356,120]
[336725895,1725085104603,-2064.59,0.00038356,120]
[336725896,1725085104627,-500.0,0.00038356,120]
[336725897,1725085104651,-500.0,0.00038356,120]
[336725898,1725085104675,-500.0,0.00038356,120]
[336725899,1725085104699,-772.05,0.00038356,120]
[336725900,1725085104722,-1027.78,0.00038356,120]
[336725901,1725085104747,-1831.01,0.00038356,120]
[336725902,1725085104773,-1126.23,0.00038356,120]
[336725903,1725085104798,-500.0,0.00038356,120]
[336725904,1725085104823,-1397.22,0.00038356,120]
[336725905,1725085104848,-500.0,0.00038356,120]
[336725906,1725085104871,-500.0,0.00038356,120]
[336725907,1725085104896,-2999.99,0.00038356,40]
[336725908,1725085104920,-2245.78,0.00038356,120]
[336725909,1725085104945,-1400.18,0.00038356,120]
[336725910,1725085104969,-1570.65,0.00038356,120]
[336725911,1725085104992,-500.0,0.00038356,120]
[336725912,1725085105016,-1175.43,0.00038356,120]
[336725913,1725085105039,-1552.31,0.00038356,120]
[336725914,1725085105064,-500.0,0.00038356,120]
[336725915,1725085105087,-2597.83,0.00038356,120]
[336725916,1725085105111,-500.0,0.00038356,120]
[336725917,1725085105134,-2288.82,0.00038356,120]
[336725918,1725085105158,-770.3,0.00038356,120]
[336725919,1725085105182,-938.14,0.00038356,120]
[336725920,1725085105206,-500.0,0.00038356,120]
[336725921,1725085105230,-500.0,0.00038356,120]
[336725922,1725085105254,-1094.23,0.00038356,120]
[336725923,1725085105278,-2461.74,0.00038356,120]
[336725924,1725085105302,-1035.53,0.00038356,120]
[336725925,1725085105326,-2000.0,0.00038356,120]
[336725926,1725085105349,-500.0,0.00038356,120]
[336725927,1725085105373,-2000.0,0.00038356,30]
[336725928,1725085105398,-500.0,0.00038356,120]
[336725929,1725085105421,-1952.23,0.00038356,120]
[336725930,1725085105657,-744.82,0.00038356,120]
[336725931,1725085105684,-500.0,0.00038356,120]
[336725932,1725085105707,-500.0,0.00038356,120]
[336725933,1725085105733,-500.0,0.00038356,120]
[336725934,1725085105760,-523.09395183,0.00038356,120]
[336725935,1725085105791,-1416.07,0.00038356,120]
[336725936,1725085105818,-500.0,0.00038356,120]
[336725937,1725085105845,-500.0,0.00038356,120]
[336725938,1725085105874,-500.0,0.00038356,120]
[336725939,1725085105900,-500.0,0.00038356,120]
[336725940,1725085105929,-696.59,0.00038356,120]
[336725941,1725085105956,-150.0,0.00038356,120]
[336725942,1725085105983,-673.61,0.00038356,120]
[336725943,1725085106008,-539.22100692,0.00038356,120]
[336725944,1725085106034,-1520.87,0.00038356,120]
[336725945,1725085106060,-500.0,0.00038356,120]
[336725946,1725085106085,-1387.42,0.00038356,120]
[336725947,1725085106109,-1762.52,0.00038356,120]
[336725948,1725085106133,-582.5,0.00038356,120]
[336725949,1725085106157,-528.99080253,0.00038356,120]
[336725950,1725085106182,-500.0,0.00038356,120]
[336725951,1725085106207,-500.0,0.00038356,120]
[336725952,1725085106231,-531.38,0.00038356,120]
[336725953,1725085106257,-2558.85,0.00038356,120]
[336725954,1725085106283,-1554.54,0.00038356,120]
[336725955,1725085106309,-1271.21,0.00038356,120]
[336725956,1725085106334,-506.46,0.00038356,120]
[336725957,1725085106361,-500.0,0.00038356,120]
[336725958,1725085106386,-643.75,0.00038356,120]
[336725959,1725085106412,-186.71906649,0.00038356,120]
[336725960,1725085106438,-500.0,0.00038356,120]
[336725961,1725085106464,-500.0,0.00038356,120]
[336725962,1725085106489,-186.83823953,0.00038356,120]
[336725963,1725085106514,-500.0,0.00038356,120]
[336725964,1725085106538,-500.0,0.00038356,120]
[336725965,1725085106563,-500.0,0.00038356,120]
[336725966,1725085106589,-500.0,0.00038356,120]
[336725967,1725085106614,-500.0,0.00038356,120]
[336725968,1725085106640,-500.0,0.00038356,120]
[336725969,1725085106665,-500.0,0.00038356,120]
[336725970,1725085106690,-500.0,0.00038356,120]
[336725971,1725085106714,-500.0,0.00038356,120]
[336725972,1725085106739,-500.0,0.00038356,120]
[336725973,1725085106764,-500.0,0.00038356,120]
[336725974,1725085106794,-1987.17,0.00038356,120]
[336725975,1725085106822,-500.0,0.00038356,120]
[336725976,1725085106847,-500.0,0.00038356,120]
[336725977,1725085106873,-500.0,0.00038356,120]
[336725978,1725085106899,-500.0,0.00038356,120]
[336725979,1725085106924,-500.0,0.00038356,120]
[336725980,1725085106949,-500.0,0.00038356,120]
[336725981,1725085106974,-500.0,0.00038356,120]
[336725982,1725085106998,-500.0,0.00038356,120]
[336725983,1725085107022,-500.0,0.00038356,120]
[336725984,1725085107046,-500.0,0.00038356,120]
[336725985,1725085107070,-500.0,0.00038356,120]
[336725986,1725085107093,-477.59483145,0.00038356,120]
[336725987,1725085107118,-525.09,0.00038356,120]
[336725988,1725085107143,-500.0,0.00038356,120]
[336725989,1725085107169,-503.51872046,0.00038356,120]
[336725990,1725085107195,-1315.89,0.00038356,120]
[336725991,1725085107221,-917.3,0.00038356,120]
[336725992,1725085107248,-2037.73,0.00038356,120]
[336725993,1725085107276,-5391.87,0.00038356,120]
[336725994,1725085107301,-500.0,0.00038356,120]
[336725995,1725085107327,-500.0,0.00038356,120]
[336725996,1725085107352,-500.0,0.00038356,120]
[336725997,1725085107375,-500.0,0.00038356,120]
[336725998,1725085107406,-2115.98,0.00038356,120]
[336725999,1725085107430,-500.0,0.00038356,120]
[336726000,1725085107454,-2174.79,0.00038356,120]
[336726001,1725085107480,-500.0,0.00038356,120]
[336726002,1725085107505,-996.95,0.00038356,120]
[336726003,1725085107529,-500.0,0.00038356,120]
[336726004,1725085107553,-2121.2,0.00038356,120]
[336726005,1725085107577,-727.36,0.00038356,120]
[336726006,1725085107602,-514.35892179,0.00038356,120]
[336726007,1725085107626,-696.4,0.00038356,120]
[336726008,1725085107651,-500.0,0.00038356,120]
[336726009,1725085107674,-710.96,0.00038356,120]
[336726010,1725085107698,-803.74,0.00038356,120]
[336726011,1725085107721,-5781.55,0.00038356,120]
[336726012,1725085107743,-748.83,0.00038356,120]
[336726013,1725085107769,-500.0,0.00038356,120]
[336726014,1725085107792,-500.0,0.00038356,120]
[336726015,1725085107816,-500.0,0.00038356,120]
[336726016,1725085107839,-500.0,0.00038356,120]
[336726017,1725085107864,-1783.82,0.00038356,120]
[336726018,1725085107887,-500.0,0.00038356,120]
[336726019,1725085107911,-500.0,0.00038356,120]
[336726020,1725085107933,-1686.38,0.00038356,120]
[336726021,1725085107956,-2304.84,0.00038356,120]
[336726022,1725085107978,-568.05,0.00038356,120]
[336726023,1725085108001,-500.0,0.00038356,120]
[336726024,1725085108023,-1168.88,0.00038356,120]
[336726025,1725085108045,-761.86,0.00038356,120]
[336726026,1725085108069,-1736.62,0.00038356,120]
[336726027,1725085108093,-4742.16,0.00038356,120]
[336726028,1725085108116,-3878.16,0.00038356,120]
[336726029,1725085108139,-991.52,0.00038356,120]
[336726030,1725085108163,-3797.36,0.00038356,120]
[336726031,1725085108186,-500.0,0.00038356,120]
[336726032,1725085108212,-500.0,0.00038356,120]
[336726033,1725085108237,-502.0926282,0.00038356,120]
[336726034,1725085108262,-5801.83,0.00038356,120]
[336726035,1725085108498,-210.55378786,0.00038356,120]
[336726036,1725085108524,-1384.4,0.00038356,120]
[336726037,1725085108548,-2192.32,0.00038356,120]
[336726038,1725085108572,-731.6,0.00038356,120]
[336726039,1725085108599,-500.0,0.00038356,120]
[336726040,1725085108624,-500.0,0.00038356,120]
[336726041,1725085108649,-2250.69,0.00038356,120]
[336726042,1725085108674,-2120.14,0.00038356,120]
[336726043,1725085108700,-2458.49,0.00038356,120]
[336726044,1725085108726,-500.0,0.00038356,120]
[336726045,1725085108752,-500.0,0.00038356,120]
[336726046,1725085108783,-500.0,0.00038356,120]
[336726047,1725085108809,-500.0,0.00038356,120]
[336726048,1725085108834,-2003.2,0.00038356,120]
[336726049,1725085108864,-540.27,0.00038356,120]
[336726050,1725085108890,-500.0,0.00038356,120]
[336726051,1725085108914,-500.0,0.00038356,120]
[336726052,1725085108940,-667.74,0.00038356,120]
[336726053,1725085108965,-500.0,0.00038356,120]
[336726054,1725085108989,-500.0,0.00038356,120]
[336726055,1725085109012,-2118.23,0.00038356,120]
[336726056,1725085109038,-600.38,0.00038356,120]
[336726057,1725085109065,-2392.95,0.00038356,120]
[336726058,1725085109090,-522.69,0.00038356,120]
[336726059,1725085109116,-1210.64,0.00038356,120]
[336726060,1725085109141,-500.0,0.00038356,120]
[336726061,1725085109164,-500.0,0.00038356,120]
[336726062,1725085109191,-500.0,0.00038356,120]
[336726063,1725085109217,-500.0,0.00038356,120]
[336726064,1725085109241,-500.0,0.00038356,120]
[336726065,1725085109265,-500.0,0.00038356,120]
[336726066,1725085109289,-500.0,0.00038356,120]
[336726067,1725085109314,-1856.52,0.00038356,120]
[336726068,1725085109338,-500.0,0.00038356,120]
[336726069,1725085109365,-500.0,0.00038356,120]
[336726070,1725085109391,-500.0,0.00038356,120]
[336726071,1725085109417,-500.0,0.00038356,120]
[336726072,1725085109442,-500.0,0.00038356,120]
[336726073,1725085109466,-500.0,0.00038356,120]
[336726074,1725085109490,-500.0,0.00038356,120]
[336726075,1725085109515,-500.0,0.00038356,120]
[336726076,1725085109539,-856.67,0.00038356,120]
[336726077,1725085109563,-500.0,0.00038356,120]
[336726078,1725085109588,-1905.46,0.00038356,120]
[336726079,1725085109612,-500.0,0.00038356,120]
[336726080,1725085109637,-502.81569962,0.00038356,120]
[336726081,1725085109662,-1521.24,0.00038356,120]
[336726082,1725085109686,-500.0,0.00038356,120]
[336726083,1725085109711,-1476.4,0.00038356,120]
[336726084,1725085109735,-500.0,0.00038356,120]
[336726085,1725085109759,-500.0,0.00038356,120]
[336726086,1725085109792,-547.37,0.00038356,120]
[336726087,1725085109817,-500.0,0.00038356,120]
[336726088,1725085109842,-862.89,0.00038356,120]
[336726089,1725085109866,-1176.12,0.00038356,120]
[336726090,1725085109891,-660.11,0.00038356,120]
[336726091,1725085109915,-2325.34,0.00038356,120]
[336726092,1725085109940,-500.0,0.00038356,120]
[336726093,1725085109964,-501.74,0.00038356,120]
[336726094,1725085109989,-500.0,0.00038356,120]
[336726095,1725085110013,-610.92338973,0.00038356,120]
[336726096,1725085110037,-500.0,0.00038356,120]
[336726097,1725085110063,-849.88,0.00038356,120]
[336726098,1725085110089,-500.0,0.00038356,120]
[336726099,1725085110114,-2388.65,0.00038356,120]
[336726100,1725085110140,-500.0,0.00038356,120]
[336726101,1725085110167,-2070.59,0.00038356,120]
[336726102,1725085110191,-500.0,0.00038356,120]
[336726103,1725085110216,-4375.49,0.00038356,120]
[336726104,1725085110240,-1982.62,0.00038356,120]
[336726105,1725085110264,-500.0,0.00038356,120]
[336726106,1725085110288,-500.0,0.00038356,120]
[336726107,1725085110312,-500.0,0.00038356,120]
[336726108,1725085110335,-500.0,0.00038356,120]
[336726109,1725085110359,-500.0,0.00038356,120]
[336726110,1725085110382,-500.0,0.00038356,120]
[336726111,1725085110406,-500.0,0.00038356,120]
[336726112,1725085110430,-500.0,0.00038356,120]
[336726113,1725085110452,-2073.66,0.00038356,120]
[336726114,1725085110475,-909.97,0.00038356,120]
[336726115,1725085110499,-523.5,0.00038356,120]
[336726116,1725085110521,-500.0,0.00038356,120]
[336726117,1725085110545,-500.0,0.00038356,120]
[336726118,1725085110568,-500.0,0.00038356,120]
[336726119,1725085110592,-500.0,0.00038356,120]
[336726120,1725085110616,-2189.52,0.00038356,120]
[336726121,1725085110640,-500.0,0.00038356,120]
[336726122,1725085110666,-500.0,0.00038356,120]
[336726123,1725085110690,-1371.6,0.00038356,120]
[336726124,1725085110715,-561.78,0.00038356,30]
[336726125,1725085110739,-500.0,0.00038356,120]
[336726126,1725085110762,-804.7,0.00038356,120]
[336726127,1725085110791,-1829.3,0.00038356,120]
[336726128,1725085110815,-500.0,0.00038356,120]
[336726129,1725085110838,-1112.52,0.00038356,120]
[336726130,1725085110866,-500.0,0.00038356,120]
[336726131,1725085110889,-500.0,0.00038356,120]
[336726132,1725085110913,-500.0,0.00038356,120]
[336726133,1725085110941,-500.0,0.00038356,120]
[336726134,1725085110965,-401.30945501,0.00038356,120]
[336726135,1725085110991,-2039.92,0.00038356,120]
[336726136,1725085111015,-964.65,0.00038356,120]
[336726137,1725085111039,-500.0,0.00038356,120]
[336726138,1725085111063,-500.0,0.00038356,120]
[336726139,1725085111086,-219.49742427,0.00038356,120]
[336726140,1725085111324,-500.0,0.00038356,120]
[336726141,1725085111351,-213.19886357,0.00038356,120]
[336726142,1725085111376,-500.0,0.00038356,120]
[336726143,1725085111403,-1312.09,0.00038356,120]
[336726144,1725085111430,-500.0,0.00038356,120]
[336726145,1725085111454,-500.0,0.00038356,120]
[336726146,1725085111480,-500.0,0.00038356,120]
[336726147,1725085111507,-1782.75,0.00038356,120]
[336726148,1725085111534,-500.0,0.00038356,120]
[336726149,1725085111558,-500.0,0.00038356,120]
[336726150,1725085111587,-500.0,0.00038356,120]
[336726151,1725085111612,-1702.92,0.00038356,120]
[336726152,1725085111636,-508.18270269,0.00038356,120]
[336726153,1725085111661,-1029.68,0.00038356,120]
[336726154,1725085111685,-500.0,0.00038356,120]
[336726155,1725085111713,-500.0,0.00038356,120]
[336726156,1725085111736,-2092.19,0.00038356,120]
[336726157,1725085111760,-500.0,0.00038356,120]
[336726158,1725085111788,-1324.2,0.00038356,120]
[336726159,1725085111811,-500.0,0.00038356,120]
[336726160,1725085111835,-500.0,0.00038356,120]
[336726161,1725085111859,-500.0,0.00038356,120]
[336726162,1725085111883,-500.0,0.00038356,120]
[336726163,1725085111907,-687.53,0.00038356,120]
[336726164,1725085111931,-500.0,0.00038356,120]
[336726165,1725085111954,-500.0,0.00038356,120]
[336726166,1725085111977,-274.16566302,0.00038356,120]
[336726167,1725085112001,-1577.57,0.00038356,120]
[336726168,1725085112024,-500.0,0.00038356,120]
[336726169,1725085112048,-500.0,0.00038356,120]
[336726170,1725085112071,-1633.84,0.00038356,120]
[336726171,1725085112096,-927.35,0.00038356,120]
[336726172,1725085112119,-500.0,0.00038356,120]
[336726173,1725085112144,-500.0,0.00038356,120]
[336726174,1725085112169,-500.0,0.00038356,120]
[336726175,1725085112194,-500.0,0.00038356,120]
[336726176,1725085112218,-500.0,0.00038356,120]
[336726177,1725085112243,-500.0,0.00038356,120]
[336726178,1725085112267,-500.0,0.00038356,120]
[336726179,1725085112293,-500.0,0.00038356,120]
[336726180,1725085112318,-398.98114701,0.00038356,120]
[336726181,1725085112343,-500.0,0.00038356,120]
[336726182,1725085112367,-1255.1,0.00038356,120]
[336726183,1725085112391,-961.72,0.00038356,120]
[336726184,1725085112414,-500.0,0.00038356,120]
[336726185,1725085112438,-500.0,0.00038356,120]
[336726186,1725085112462,-500.0,0.00038356,120]
[336726187,1725085112486,-500.0,0.00038356,120]
[336726188,1725085112510,-500.0,0.00038356,120]
[336726189,1725085112534,-500.0,0.00038356,120]
[336726190,1725085112559,-500.0,0.00038356,120]
[336726191,1725085112584,-500.0,0.00038356,120]
[336726192,1725085112609,-553.73,0.00038356,120]
[336726193,1725085112633,-1344.82,0.00038356,120]
[336726194,1725085112657,-793.38,0.00038356,120]
[336726195,1725085112682,-500.0,0.00038356,120]
[336726196,1725085112706,-2218.72,0.00038356,120]
[336726197,1725085112731,-500.0,0.00038356,120]
[336726198,1725085112755,-500.0,0.00038356,120]
[336726199,1725085112783,-500.0,0.00038356,120]
[336726200,1725085112809,-846.91,0.00038356,120]
[336726201,1725085112833,-500.0,0.00038356,120]
[336726202,1725085112859,-1968.84,0.00038356,120]
[336726203,1725085112883,-4330.36,0.00038356,120]
[336726204,1725085112907,-500.0,0.00038356,120]
[336726205,1725085112931,-1518.96,0.00038356,120]
[336726206,1725085112956,-500.0,0.00038356,120]
[336726207,1725085112980,-1835.9,0.00038356,120]
[336726208,1725085113004,-500.0,0.00038356,120]
[336726209,1725085113028,-500.0,0.00038356,120]
[336726210,1725085113053,-500.0,0.00038356,120]
[336726211,1725085113078,-500.0,0.00038356,120]
[336726212,1725085113103,-500.0,0.00038356,120]
[336726213,1725085113128,-500.0,0.00038356,120]
[336726214,1725085113155,-6364.77,0.00038356,120]
[336726215,1725085113179,-1044.01,0.00038356,120]
[336726216,1725085113205,-500.0,0.00038356,120]
[336726217,1725085113230,-603.33,0.00038356,120]
[336726218,1725085113255,-2179.57,0.00038356,120]
[336726219,1725085113279,-805.02,0.00038356,120]
[336726220,1725085113304,-500.0,0.00038356,120]
[336726221,1725085113328,-3303.96,0.00038356,120]
[336726222,1725085113357,-548.57187239,0.00038356,120]
[336726223,1725085113383,-922.46,0.00038356,120]
[336726224,1725085113408,-500.0,0.00038356,120]
[336726225,1725085113433,-1640.29,0.00038356,120]
[336726226,1725085113458,-389.77283917,0.00038356,30]
[336726227,1725085113484,-1667.23,0.00038356,120]
[336726228,1725085113510,-586.11,0.00038356,120]
[336726229,1725085113535,-500.0,0.00038356,120]
[336726230,1725085113561,-500.0,0.00038356,120]
[336726231,1725085113587,-1646.21,0.00038356,120]
[336726232,1725085113614,-500.0,0.00038356,120]